Workbook

Sheet ПАТ "Вінницягаз"
A1: ПАТ "УКРТРАНСГАЗ" | G1: ПАСПОРТ ФІЗИКО-ХІМІЧНИХ ПОКАЗНИКІВ ПРИРОДНОГО ГАЗУ № 01-4/11.2016 | AE1: 169,1;38,1;38,2;174,1;201,1;208,1;205,1;204,1;202,1;203,1;207,2
A2: Філія "УМГ "Черкаситрансгаз" | G2: переданого Гайсинським ЛВУМГ та прийнятого ПАТ "Вінницягаз" Віницької області | AB2: Маршрут № 830
A3: Гайсинський п/м Гайсинське ЛВУМГ | G3: по ГВС (ПВВГ, СВГ, ГРС): Тиврів, Вороновиця, Побережне, Іллінці, Тягун, Оратів, Осична, Росоша, Погребище, Андрушівка.
A4: Вимірювальна хіміко-аналітична лабораторія
A5: Свідоцтво № ПУ-0077/14 чинно до 27.05.2018 р. | K5: газопроводу "УРЕНГОЙ-ПОМАРИ-УЖГОРОД" | V5: за період з | X5: 2016-11-01 | Z5: по | AA5: =EOMONTH(X5,0) -> 2016-11-30
A7: Число місяця | B7: Компонентний склад, % мол. | N7: Фізико-хімічні показники газу обчислені на основі компонентного складу, 101,325 кПа | X7: Температура точки роси вологи (Р = 3.92 МПа), ºС | Y7: Температура точки роси вуглеводнів, ºС | Z7: Масова концентрація сірководню, мг/м3 | AA7: Масова концентрація меркаптанової сірки, мг/м3 | AB7: Маса механічних домішок, мг/м3 | AC7: Обсяг газу, тис. м3 (обрахованого на вузлах обліку газу)
N8: Густина абсолютна, кг/м3,при 20 ºС, | O8: Температура вимірювання/згоряння при | V8: 20/25ºС
B9: метан, С1 | C9: етан, С2 | D9: пропан, С3 | E9: ізо-бутан, і-С4 | F9: н-бутан, н-С4 | G9: нео-пентан, нео-С5 | H9: ізо-пентан, і-С5 | I9: н-пентан, н-С5 | J9: гексани та вищі, С6+ | K9: кисень, О2 | L9: азот, N2 | M9: діоксид вуглецю, CО2 | O9: Теплота згоряння нижча, ккал/м3 | P9: Теплота згоряння нижча, МДж/м3 | Q9: Теплота згоряння нижча, кВт⋅год/м3 | R9: Теплота згоряння вища, ккал/м3 | S9: Теплота згоряння вища, МДж/м3 | T9: Теплота згоряння вища, кВт⋅год/м3 | U9: Число Воббе вище, ккал/м3 | V9: Число Воббе вище, МДж/м3 | W9: Число Воббе вище, кВт⋅год/м3
A11: 1 | O11: 8196 | P11: 34.3165 | Q11: =P11/3.6 -> 9.532361111 | R11: 9084 | S11: 38.0344 | T11: =S11/3.6 -> 10.56511111 | AC11: 344.570125
A12: 2 | O12: 8196 | P12: 34.3165 | Q12: =P12/3.6 -> 9.532361111 | R12: 9084 | S12: 38.0344 | T12: =S12/3.6 -> 10.56511111 | AC12: 334.6718437
A13: 3 | B13: 95.9284 | C13: 2.2573 | D13: 0.7108 | E13: 0.1122 | F13: 0.1087 | G13: 0.0044 | H13: 0.0212 | I13: 0.0146 | J13: 0.0038 | K13: 0.0072 | L13: 0.6279 | M13: 0.2034 | N13: 0.7003 | O13: 8199 | P13: 34.3262 | Q13: 9.535055556 | R13: 9087 | S13: 38.0454 | T13: 10.56816667 | U13: 11917 | V13: 49.8955 | W13: =V13/3.6 -> 13.85986111 | X13: -22.2 | AC13: 331.3821875 | AE13: =IF(AD13=100,"ОК"," ") -> 
A14: 4 | O14: 8199 | P14: 34.3262 | Q14: =P14/3.6 -> 9.535055556 | R14: 9087 | S14: 38.0454 | T14: =S14/3.6 -> 10.56816667 | AC14: 363.0715313 | AE14: =IF(AD14=100,"ОК"," ") -> 
A15: 5 | O15: 8199 | P15: 34.3262 | Q15: 9.535055556 | R15: 9087 | S15: 38.0454 | T15: 10.56816667 | AC15: 389.8751562
A16: 6 | O16: 8199 | P16: 34.3262 | Q16: 9.535055556 | R16: 9087 | S16: 38.0454 | T16: 10.56816667 | AC16: 367.7799375
A17: 7 | O17: 8199 | P17: 34.3262 | Q17: 9.535055556 | R17: 9087 | S17: 38.0454 | T17: 10.56816667 | AC17: 314.7521562
A18: 8 | O18: 8199 | P18: 34.3262 | Q18: 9.535055556 | R18: 9087 | S18: 38.0454 | T18: 10.56816667 | AC18: 359.1558437
A19: 9 | B19: 95.9964 | C19: 2.2235 | D19: 0.6957 | E19: 0.1067 | F19: 0.1039 | G19: 0.0009 | H19: 0.0199 | I19: 0.0139 | J19: 0.0029 | K19: 0.0076 | L19: 0.6341 | M19: 0.1945 | N19: 0.6995 | O19: 8191 | P19: 34.2953 | Q19: 9.526472222 | R19: 9079 | S19: 38.0124 | T19: 10.559 | U19: 11914 | V19: 49.8802 | W19: 13.85561111 | X19: -22.1 | AC19: 348.0582187
A20: 10 | O20: 8191 | P20: 34.2953 | Q20: =P20/3.6 -> 9.526472222 | R20: 9079 | S20: 38.0124 | T20: =S20/3.6 -> 10.559 | AC20: 353.2976875
A21: 11 | O21: 8191 | P21: 34.2953 | Q21: 9.526472222 | R21: 9079 | S21: 38.0124 | T21: 10.559 | AC21: 363.2406562
A22: 12 | O22: 8191 | P22: 34.2953 | Q22: 9.526472222 | R22: 9079 | S22: 38.0124 | T22: 10.559 | AC22: 381.6891562
A23: 13 | O23: 8191 | P23: 34.2953 | Q23: 9.526472222 | R23: 9079 | S23: 38.0124 | T23: 10.559 | AC23: 370.6725313
A24: 14 | O24: 8191 | P24: 34.2953 | Q24: 9.526472222 | R24: 9079 | S24: 38.0124 | T24: 10.559 | AC24: 390.9719375
A25: 15 | O25: 8191 | P25: 34.2953 | Q25: 9.526472222 | R25: 9079 | S25: 38.0124 | T25: 10.559 | AC25: 399.9799062
A26: 16 | B26: 96.0339 | C26: 2.184 | D26: 0.6936 | E26: 0.1092 | F26: 0.1071 | G26: 0.0018 | H26: 0.0205 | I26: 0.0147 | J26: 0.0036 | K26: 0.0072 | L26: 0.6314 | M26: 0.1931 | N26: 0.6994 | O26: 8191 | P26: 34.29 | Q26: 9.525 | R26: 9079 | S26: 38.01 | T26: 10.55833333 | U26: 11914 | V26: 49.88142 | W26: 13.85595 | X26: -23.7 | AC26: 393.1865
A27: 17 | O27: 8191 | P27: 34.29 | Q27: =P27/3.6 -> 9.525 | R27: 9079 | S27: 38.01 | T27: =S27/3.6 -> 10.55833333 | AC27: 396.7008437
A28: 18 | O28: 8191 | P28: 34.29 | Q28: 9.525 | R28: 9079 | S28: 38.01 | T28: 10.55833333 | AC28: 369.4888125
A29: 19 | O29: 8191 | P29: 34.29 | Q29: 9.525 | R29: 9079 | S29: 38.01 | T29: 10.55833333 | AC29: 363.670625
A30: 20 | O30: 8191 | P30: 34.29 | Q30: 9.525 | R30: 9079 | S30: 38.01 | T30: 10.55833333 | AC30: 368.0884062 | AE30: =IF(AD30=100,"ОК"," ") -> 
A31: 21 | O31: 8191 | P31: 34.29 | Q31: 9.525 | R31: 9079 | S31: 38.01 | T31: 10.55833333 | AC31: 379.6838437
A32: 22 | B32: 95.9964 | C32: 2.2021 | D32: 0.7014 | E32: 0.1112 | F32: 0.1095 | G32: 0.0027 | H32: 0.022 | I32: 0.0154 | J32: 0.0052 | K32: 0.0076 | L32: 0.6327 | M32: 0.1938 | N32: 0.6998 | O32: 8195 | P32: 34.31 | Q32: 9.530555556 | R32: 9083 | S32: 38.0278 | T32: 10.56327778 | U32: 11916 | V32: 49.8898 | W32: 13.85827778 | X32: -22.4 | Z32: 0 | AA32: 0 | AB32: 0 | AC32: 433.2238125
A33: 23 | O33: 8195 | P33: 34.31 | Q33: =P33/3.6 -> 9.530555556 | R33: 9083 | S33: 38.0278 | T33: =S33/3.6 -> 10.56327778 | AC33: 425.5163437 | AE33: =IF(AD33=100,"ОК"," ") -> 
A34: 24 | O34: 8195 | P34: 34.31 | Q34: 9.530555556 | R34: 9083 | S34: 38.0278 | T34: 10.56327778 | AC34: 398.073625
A35: 25 | O35: 8195 | P35: 34.31 | Q35: 9.530555556 | R35: 9083 | S35: 38.0278 | T35: 10.56327778 | AC35: 386.6179687
A36: 26 | O36: 8195 | P36: 34.31 | Q36: 9.530555556 | R36: 9083 | S36: 38.0278 | T36: 10.56327778 | AC36: 403.4098437
A37: 27 | O37: 8195 | P37: 34.31 | Q37: 9.530555556 | R37: 9083 | S37: 38.0278 | T37: 10.56327778 | AC37: 408.49175
A38: 28 | O38: 8195 | P38: 34.31 | Q38: 9.530555556 | R38: 9083 | S38: 38.0278 | T38: 10.56327778 | AC38: 388.2142812
A39: 29 | B39: 96.1882 | C39: 2.0721 | D39: 0.6594 | E39: 0.1046 | F39: 0.1031 | G39: 0.0041 | H39: 0.0205 | I39: 0.0145 | J39: 0.0047 | K39: 0.0076 | L39: 0.6366 | M39: 0.1845 | N39: 0.6982 | O39: 8179 | P39: 34.2439 | Q39: 9.512194444 | R39: 9066 | S39: 37.9575 | T39: 10.54375 | U39: 11908 | V39: 49.8549 | W39: 13.84858333 | X39: -20.6 | AC39: 426.8827812
A40: 30 | O40: 8179 | P40: 34.2439 | Q40: =P40/3.6 -> 9.512194444 | R40: 9066 | S40: 37.9575 | T40: =S40/3.6 -> 10.54375 | AC40: 431.9519687
A41: Умовно постійні компоненти, мол. % від 01.01.2016 р. | I41: Гелій | K41: 0 | L41: Водень | N41: 0 | O41: 8192.885809 | P41: 34.30107133 | Q41: 9.528075371 | R41: 9080.810382 | S41: 38.01910034 | T41: 10.5608612 | X41: Всього - обсяг природного газу за місяць з урахуванням ВТВ:
H42: Середньозважене значення теплоти згоряння: | AC42: 11366.148
B44: Начальник управління Гайсинського ЛВУМГ Омельченко Ю.В. 07.12.2016
C45: Підрозділу підприємства, якому підпорядкована лабораторія | O45: прізвище | R45: підпис | V45: дата
B46: Начальник лабораторії Стук О.В. 07.12.2016
C47: Лабораторія, де здійснювалось вимірювання газу | O47: прізвище | R47: підпис | V47: дата
B48: Провідний економіст із збуту Гайсинського ЛВУМГ Гнатишин І.В. 07.12.2016
C49: Служба ОНПТГ | O49: прізвище | R49: підпис | V49: дата

Sheet variablesList (hidden)
A1: 3 | B1: x:\gaysin | C1: 10, 11, 24, 25, 127, 128, 132, 180, 207, 215 | D1: x:\
B2: x:\Illinci
B3: x:\Talne
